[Event "Early-Titled-Tuesday-Blitz-February-06-2024"]
[Site "Chess.com"]
[Date "2024.02.06"]
[Round "6"]
[White "evgchess5"]
[Black "iwanyu"]
[Result "0-1"]
[WhiteElo "2967"]
[BlackElo "2805"]
[TimeControl "180+1"]
[EndTime "9:07:41 PST"]
[Termination "iwanyu won on time"]

1. e4 {[%clk 0:03:00.9]} 1... c6 {[%clk 0:03:00.1]} 2. d4 {[%clk 0:02:59.3]}
2... d5 {[%clk 0:03:01]} 3. e5 {[%clk 0:02:59.4]} 3... c5 {[%clk 0:03:00.8]} 4.
Nf3 {[%clk 0:02:57.7]} 4... cxd4 {[%clk 0:02:58.7]} 5. Nxd4 {[%clk 0:02:57.2]}
5... Nc6 {[%clk 0:02:58.5]} 6. c4 {[%clk 0:02:57]} 6... e6 {[%clk 0:02:57.3]} 7.
Nc3 {[%clk 0:02:56.4]} 7... Bc5 {[%clk 0:02:47.6]} 8. Nxc6 {[%clk 0:02:56.2]}
8... bxc6 {[%clk 0:02:48.5]} 9. cxd5 {[%clk 0:02:56]} 9... exd5 {[%clk
0:02:49.4]} 10. Bd3 {[%clk 0:02:53]} 10... Ne7 {[%clk 0:02:48.4]} 11. O-O {[%clk
0:02:52.2]} 11... O-O {[%clk 0:02:46.8]} 12. Qc2 {[%clk 0:02:33.5]} 12... Ng6
{[%clk 0:02:42.4]} 13. Na4 {[%clk 0:02:31.6]} 13... Bd4 {[%clk 0:02:35.7]} 14.
Re1 {[%clk 0:02:06.3]} 14... Re8 {[%clk 0:02:24.5]} 15. Bxg6 {[%clk 0:02:00.3]}
15... hxg6 {[%clk 0:02:24.3]} 16. Bf4 {[%clk 0:01:58.9]} 16... Bf5 {[%clk
0:02:05.7]} 17. Qd2 {[%clk 0:01:41.7]} 17... c5 {[%clk 0:02:01.9]} 18. Rac1
{[%clk 0:01:41.3]} 18... Rc8 {[%clk 0:01:56.2]} 19. b3 {[%clk 0:01:38.7]} 19...
Be4 {[%clk 0:01:50.8]} 20. Be3 {[%clk 0:01:29.2]} 20... Rxe5 {[%clk 0:01:34.3]}
21. Bxd4 {[%clk 0:01:24.7]} 21... cxd4 {[%clk 0:01:34.2]} 22. Rxc8 {[%clk
0:01:18.8]} 22... Qxc8 {[%clk 0:01:35.1]} 23. f3 {[%clk 0:01:18]} 23... d3
{[%clk 0:01:32.1]} 24. Nb2 {[%clk 0:01:07.4]} 24... Qc5+ {[%clk 0:01:25.3]} 25.
Kh1 {[%clk 0:00:50]} 25... Rf5 {[%clk 0:01:12.9]} 26. fxe4 {[%clk 0:00:35.8]}
26... dxe4 {[%clk 0:01:12.9]} 27. Nd1 {[%clk 0:00:35.4]} 27... Qd4 {[%clk
0:00:50.5]} 28. Ne3 {[%clk 0:00:29.1]} 28... Rc5 {[%clk 0:00:47.7]} 29. g3
{[%clk 0:00:28.9]} 29... Kh7 {[%clk 0:00:44.2]} 30. Kg2 {[%clk 0:00:27.6]} 30...
f5 {[%clk 0:00:44.1]} 31. Rf1 {[%clk 0:00:27.4]} 31... Qe5 {[%clk 0:00:37.5]}
32. h3 {[%clk 0:00:25.7]} 32... Qe6 {[%clk 0:00:31.2]} 33. g4 {[%clk 0:00:21.7]}
33... Kg8 {[%clk 0:00:28.1]} 34. Qf2 {[%clk 0:00:20.9]} 34... Qc6 {[%clk
0:00:21.5]} 35. gxf5 {[%clk 0:00:10.7]} 35... gxf5 {[%clk 0:00:22.4]} 36. Qg3
{[%clk 0:00:10.4]} 36... d2 {[%clk 0:00:19.8]} 37. Qf2 {[%clk 0:00:08.3]} 37...
Qg6+ {[%clk 0:00:18.5]} 38. Kh1 {[%clk 0:00:07.4]} 38... Qd6 {[%clk 0:00:15.7]}
39. Rd1 {[%clk 0:00:05.2]} 39... f4 {[%clk 0:00:12.4]} 0-1

[Event "Early-Titled-Tuesday-Blitz-February-06-2024"]
[Site "Chess.com"]
[Date "2024.02.06"]
[Round "6"]
[White "IngOscarArdila"]
[Black "SergioMoralesG"]
[Result "0-1"]
[WhiteElo "2211"]
[BlackElo "2456"]
[TimeControl "180+1"]
[EndTime "9:07:41 PST"]
[Termination "SergioMoralesG won on time"]

1. d4 {[%clk 0:02:59.8]} 1... d5 {[%clk 0:02:59.7]} 2. c4 {[%clk 0:03:00]} 2...
c6 {[%clk 0:03:00.3]} 3. Nc3 {[%clk 0:02:59.9]} 3... Nf6 {[%clk 0:03:00.7]} 4.
Nf3 {[%clk 0:02:59.6]} 4... e6 {[%clk 0:03:01.1]} 5. cxd5 {[%clk 0:02:57.4]}
5... exd5 {[%clk 0:03:00.3]} 6. Bg5 {[%clk 0:02:57]} 6... Bf5 {[%clk 0:02:58.8]}
7. e3 {[%clk 0:02:57]} 7... Be7 {[%clk 0:02:57.2]} 8. Be2 {[%clk 0:02:56.4]}
8... O-O {[%clk 0:02:55.9]} 9. O-O {[%clk 0:02:56]} 9... Ne4 {[%clk 0:02:52.2]}
10. Bxe7 {[%clk 0:02:54]} 10... Qxe7 {[%clk 0:02:49.5]} 11. a3 {[%clk
0:02:40.5]} 11... Nd7 {[%clk 0:02:46.9]} 12. Nxe4 {[%clk 0:02:38.7]} 12... Bxe4
{[%clk 0:02:46.2]} 13. b4 {[%clk 0:02:38.7]} 13... b5 {[%clk 0:02:43.2]} 14. Rc1
{[%clk 0:02:37]} 14... Rac8 {[%clk 0:02:38]} 15. a4 {[%clk 0:02:36.8]} 15...
Qxb4 {[%clk 0:02:26.3]} 16. axb5 {[%clk 0:02:32.1]} 16... cxb5 {[%clk
0:02:26.2]} 17. Qd2 {[%clk 0:02:16]} 17... Qxd2 {[%clk 0:02:08.8]} 18. Nxd2
{[%clk 0:02:16.1]} 18... a6 {[%clk 0:02:09.2]} 19. Nxe4 {[%clk 0:01:27.2]} 19...
dxe4 {[%clk 0:02:10.1]} 20. Bg4 {[%clk 0:01:27.1]} 20... Rxc1 {[%clk 0:01:44.5]}
21. Rxc1 {[%clk 0:01:26.1]} 21... f5 {[%clk 0:01:43.7]} 22. Bd1 {[%clk
0:01:03.6]} 22... Rd8 {[%clk 0:01:02.8]} 23. Bb3+ {[%clk 0:01:01.3]} 23... Kf8
{[%clk 0:01:02.1]} 24. Rc7 {[%clk 0:00:55.8]} 24... a5 {[%clk 0:00:24.3]} 25.
Be6 {[%clk 0:00:54.4]} 25... Ke7 {[%clk 0:00:24.7]} 26. Bxf5 {[%clk 0:00:52.7]}
26... Kd6 {[%clk 0:00:12.3]} 27. Ra7 {[%clk 0:00:49.2]} 27... a4 {[%clk
0:00:12.4]} 28. Bxe4 {[%clk 0:00:42.3]} 28... Rc8 {[%clk 0:00:12.2]} 29. Kf1
{[%clk 0:00:39]} 29... Nf6 {[%clk 0:00:08.2]} 30. Ra6+ {[%clk 0:00:34.1]} 30...
Ke7 {[%clk 0:00:07.4]} 31. Bc6 {[%clk 0:00:18.2]} 31... Rb8 {[%clk 0:00:06.7]}
32. e4 {[%clk 0:00:15.7]} 32... b4 {[%clk 0:00:06.3]} 33. Bxa4 {[%clk
0:00:08.5]} 33... b3 {[%clk 0:00:05.7]} 34. e5 {[%clk 0:00:07.1]} 34... Nd5
{[%clk 0:00:04]} 35. Ra7+ {[%clk 0:00:03.7]} 35... Kf8 {[%clk 0:00:04]} 36. Ke2
{[%clk 0:00:01.7]} 36... b2 {[%clk 0:00:03.8]} 0-1

[Event "Early-Titled-Tuesday-Blitz-February-06-2024"]
[Site "Chess.com"]
[Date "2024.02.06"]
[Round "6"]
[White "chess_blitz00"]
[Black "Mops_2004"]
[Result "0-1"]
[WhiteElo "2490"]
[BlackElo "2675"]
[TimeControl "180+1"]
[EndTime "9:07:42 PST"]
[Termination "Mops_2004 won on time"]

1. e4 {[%clk 0:03:00.9]} 1... c6 {[%clk 0:02:59.8]} 2. Nc3 {[%clk 0:02:55]} 2...
d5 {[%clk 0:02:59.8]} 3. Nf3 {[%clk 0:02:54.3]} 3... dxe4 {[%clk 0:02:59.5]} 4.
Nxe4 {[%clk 0:02:55.2]} 4... Nf6 {[%clk 0:03:00]} 5. Nxf6+ {[%clk 0:02:47.4]}
5... exf6 {[%clk 0:03:00.9]} 6. Bc4 {[%clk 0:02:43.2]} 6... Bd6 {[%clk
0:03:00.8]} 7. Qe2+ {[%clk 0:02:42.6]} 7... Qe7 {[%clk 0:03:01]} 8. Qxe7+ {[%clk
0:02:40.5]} 8... Kxe7 {[%clk 0:03:01.9]} 9. d4 {[%clk 0:02:40]} 9... Bf5 {[%clk
0:02:51.7]} 10. Bb3 {[%clk 0:02:37.7]} 10... a5 {[%clk 0:02:51]} 11. a4 {[%clk
0:02:37.8]} 11... Be6 {[%clk 0:02:49.8]} 12. Bxe6 {[%clk 0:02:17.3]} 12... fxe6
{[%clk 0:02:49.5]} 13. Be3 {[%clk 0:02:13.4]} 13... Na6 {[%clk 0:02:45.9]} 14.
c3 {[%clk 0:02:13]} 14... Nc7 {[%clk 0:02:36.9]} 15. O-O-O {[%clk 0:02:06.7]}
15... b5 {[%clk 0:02:35.5]} 16. axb5 {[%clk 0:02:03.7]} 16... cxb5 {[%clk
0:02:35.6]} 17. Kc2 {[%clk 0:02:01]} 17... Nd5 {[%clk 0:02:34.5]} 18. Nd2 {[%clk
0:01:58]} 18... Rhc8 {[%clk 0:02:29.3]} 19. Kd3 {[%clk 0:01:56.4]} 19... a4
{[%clk 0:02:22.1]} 20. Ra1 {[%clk 0:01:53.8]} 20... a3 {[%clk 0:02:13.7]} 21.
Rhb1 {[%clk 0:01:29.9]} 21... f5 {[%clk 0:02:12.2]} 22. Bg5+ {[%clk 0:01:06.3]}
22... Kd7 {[%clk 0:02:11.9]} 23. Nf3 {[%clk 0:00:55.4]} 23... axb2 {[%clk
0:01:41.2]} 24. Rxa8 {[%clk 0:00:54.5]} 24... Rxa8 {[%clk 0:01:42.1]} 25. Rxb2
{[%clk 0:00:54.2]} 25... Ra3 {[%clk 0:01:37.3]} 26. Rxb5 {[%clk 0:00:26.2]}
26... Kc6 {[%clk 0:01:20.5]} 27. Rb2 {[%clk 0:00:13.1]} 27... Rxc3+ {[%clk
0:01:15.1]} 28. Ke2 {[%clk 0:00:07]} 28... Bf4 {[%clk 0:00:40.9]} 29. h4 {[%clk
0:00:02.3]} 29... h6 {[%clk 0:00:35.7]} 30. Bd8 {[%clk 0:00:01.4]} 30... Bc1
{[%clk 0:00:27.9]} 31. Ba5 {[%clk 0:00:01.2]} 31... Bxb2 {[%clk 0:00:26.9]} 32.
Ne5+ {[%clk 0:00:01.6]} 32... Kd6 {[%clk 0:00:25.4]} 33. Bxc3 {[%clk 0:00:02.1]}
33... Nxc3+ {[%clk 0:00:23.8]} 34. Kd3 {[%clk 0:00:02]} 34... Nb5 {[%clk
0:00:24]} 35. Nc4+ {[%clk 0:00:02.2]} 35... Kd5 {[%clk 0:00:23.1]} 36. Nxb2
{[%clk 0:00:03.1]} 36... Nxd4 {[%clk 0:00:23.5]} 37. Nd1 {[%clk 0:00:02.8]}
37... e5 {[%clk 0:00:21.5]} 38. Ne3+ {[%clk 0:00:02.5]} 38... Ke6 {[%clk
0:00:20.7]} 39. f3 {[%clk 0:00:03.2]} 39... f4 {[%clk 0:00:19.1]} 40. Nc4 {[%clk
0:00:02.8]} 40... Nf5 {[%clk 0:00:18.2]} 41. h5 {[%clk 0:00:02.2]} 41... Ng3
{[%clk 0:00:18.3]} 42. Nb6 {[%clk 0:00:01.5]} 42... Nxh5 {[%clk 0:00:18.7]} 0-1

[Event "Early-Titled-Tuesday-Blitz-February-06-2024"]
[Site "Chess.com"]
[Date "2024.02.06"]
[Round "6"]
[White "GianmarcoVaR"]
[Black "Alex_Sahakyan2006"]
[Result "0-1"]
[WhiteElo "2676"]
[BlackElo "2891"]
[TimeControl "180+1"]
[EndTime "9:07:46 PST"]
[Termination "Alex_Sahakyan2006 won on time"]

1. e4 {[%clk 0:03:00.9]} 1... c5 {[%clk 0:02:58.2]} 2. Nf3 {[%clk 0:03:00]} 2...
Nc6 {[%clk 0:02:58.2]} 3. b3 {[%clk 0:02:49.7]} 3... e5 {[%clk 0:02:56.4]} 4.
Bb2 {[%clk 0:02:43.6]} 4... d6 {[%clk 0:02:56.3]} 5. Bb5 {[%clk 0:02:41.9]} 5...
g6 {[%clk 0:02:48.2]} 6. d3 {[%clk 0:02:10.6]} 6... Qa5+ {[%clk 0:02:13.5]} 7.
Nc3 {[%clk 0:02:10.4]} 7... Bg7 {[%clk 0:02:05.4]} 8. Nd2 {[%clk 0:02:05.7]}
8... Ne7 {[%clk 0:01:53.1]} 9. Nc4 {[%clk 0:02:05.2]} 9... Qd8 {[%clk
0:01:52.7]} 10. a4 {[%clk 0:01:56.3]} 10... O-O {[%clk 0:01:46.1]} 11. Ne3
{[%clk 0:01:55.8]} 11... Nd4 {[%clk 0:01:44.7]} 12. Bc4 {[%clk 0:01:55.6]} 12...
a6 {[%clk 0:01:36.3]} 13. Ncd5 {[%clk 0:01:51.5]} 13... Nec6 {[%clk 0:01:33]}
14. Bc3 {[%clk 0:01:19.8]} 14... b6 {[%clk 0:01:21.3]} 15. a5 {[%clk 0:01:18.2]}
15... b5 {[%clk 0:01:20.7]} 16. Nb6 {[%clk 0:01:17.6]} 16... Rb8 {[%clk
0:00:55]} 17. Bd5 {[%clk 0:01:17.3]} 17... Ne7 {[%clk 0:00:44.9]} 18. b4 {[%clk
0:01:00.7]} 18... Kh8 {[%clk 0:00:38.7]} 19. Bd2 {[%clk 0:00:18.9]} 19... f5
{[%clk 0:00:36.9]} 20. c3 {[%clk 0:00:19.3]} 20... Ne6 {[%clk 0:00:32.6]} 21. f3
{[%clk 0:00:15.4]} 21... Nf4 {[%clk 0:00:32.5]} 22. O-O {[%clk 0:00:09.8]} 22...
Nxd3 {[%clk 0:00:33.1]} 23. Nxc8 {[%clk 0:00:07]} 23... Qxc8 {[%clk 0:00:33.1]}
24. Ba2 {[%clk 0:00:03.3]} 24... c4 {[%clk 0:00:33.5]} 25. Nc2 {[%clk
0:00:02.2]} 25... fxe4 {[%clk 0:00:34.2]} 26. fxe4 {[%clk 0:00:02.7]} 26... Qb7
{[%clk 0:00:34.7]} 27. Qe2 {[%clk 0:00:02.6]} 27... Nf4 {[%clk 0:00:30.7]} 28.
Bxf4 {[%clk 0:00:02.7]} 28... exf4 {[%clk 0:00:31.4]} 29. Nd4 {[%clk 0:00:02]}
29... Nc6 {[%clk 0:00:31.7]} 30. Nf3 {[%clk 0:00:02]} 30... Bxc3 {[%clk
0:00:31.7]} 31. Rac1 {[%clk 0:00:01.8]} 31... Bxb4 {[%clk 0:00:32.4]} 32. e5
{[%clk 0:00:01.8]} 32... Bc5+ {[%clk 0:00:32.6]} 33. Kh1 {[%clk 0:00:02]} 33...
dxe5 {[%clk 0:00:32.7]} 34. Bb1 {[%clk 0:00:02.4]} 34... Be3 {[%clk 0:00:31.9]}
35. Be4 {[%clk 0:00:01.8]} 35... Qc7 {[%clk 0:00:28.3]} 36. Rcd1 {[%clk
0:00:01.9]} 36... Nd4 {[%clk 0:00:29]} 37. Qb2 {[%clk 0:00:01.3]} 37... c3
{[%clk 0:00:29.1]} 38. Qa2 {[%clk 0:00:01.6]} 38... c2 {[%clk 0:00:29.1]} 39.
Rc1 {[%clk 0:00:01.9]} 39... Bxc1 {[%clk 0:00:29.3]} 40. Rxc1 {[%clk 0:00:02.4]}
40... b4 {[%clk 0:00:27.6]} 41. Nxd4 {[%clk 0:00:02.7]} 41... exd4 {[%clk
0:00:28.4]} 42. Rxc2 {[%clk 0:00:02.8]} 42... b3 {[%clk 0:00:28.6]} 43. Qxb3
{[%clk 0:00:03.2]} 43... Rxb3 {[%clk 0:00:24.2]} 44. Rxc7 {[%clk 0:00:03.9]}
44... d3 {[%clk 0:00:24.9]} 45. h3 {[%clk 0:00:01.6]} 45... Rb1+ {[%clk
0:00:25.3]} 46. Kh2 {[%clk 0:00:01.9]} 46... d2 {[%clk 0:00:26]} 0-1

[Event "Early-Titled-Tuesday-Blitz-February-06-2024"]
[Site "Chess.com"]
[Date "2024.02.06"]
[Round "6"]
[White "Chemim21"]
[Black "Felix-Rose"]
[Result "1-0"]
[WhiteElo "2246"]
[BlackElo "2391"]
[TimeControl "180+1"]
[EndTime "9:07:47 PST"]
[Termination "Chemim21 won by checkmate"]

1. e4 {[%clk 0:03:00.9]} 1... e5 {[%clk 0:02:59.4]} 2. Nf3 {[%clk 0:03:00.7]}
2... Nc6 {[%clk 0:02:59.6]} 3. Bb5 {[%clk 0:02:59.9]} 3... a6 {[%clk 0:02:46.3]}
4. Ba4 {[%clk 0:02:59.3]} 4... Nf6 {[%clk 0:02:45.9]} 5. O-O {[%clk 0:02:38.5]}
5... b5 {[%clk 0:02:46]} 6. Bb3 {[%clk 0:02:37.8]} 6... Bc5 {[%clk 0:02:46.2]}
7. Nxe5 {[%clk 0:02:31.4]} 7... Nxe5 {[%clk 0:02:42.5]} 8. d4 {[%clk 0:02:31]}
8... Bxd4 {[%clk 0:02:42.9]} 9. Qxd4 {[%clk 0:02:30.2]} 9... d6 {[%clk
0:02:43.3]} 10. c3 {[%clk 0:02:24]} 10... O-O {[%clk 0:02:28.1]} 11. h3 {[%clk
0:02:18.8]} 11... Bb7 {[%clk 0:02:22.1]} 12. Bg5 {[%clk 0:02:04.9]} 12... h6
{[%clk 0:02:21.7]} 13. Bxf6 {[%clk 0:02:03.2]} 13... Qxf6 {[%clk 0:02:16.6]} 14.
Qe3 {[%clk 0:01:55.9]} 14... Rae8 {[%clk 0:02:09.3]} 15. Nd2 {[%clk 0:01:54.5]}
15... Ng6 {[%clk 0:02:03.3]} 16. f4 {[%clk 0:01:51.8]} 16... Qe7 {[%clk
0:01:39.9]} 17. Rae1 {[%clk 0:01:49.2]} 17... Kh8 {[%clk 0:01:30.1]} 18. Qg3
{[%clk 0:01:46.1]} 18... Qf6 {[%clk 0:01:14.4]} 19. Re2 {[%clk 0:01:29]} 19...
c5 {[%clk 0:01:11.1]} 20. Bc2 {[%clk 0:01:27.1]} 20... Ne7 {[%clk 0:00:53]} 21.
e5 {[%clk 0:01:23.9]} 21... dxe5 {[%clk 0:00:45.6]} 22. fxe5 {[%clk 0:01:18.3]}
22... Qe6 {[%clk 0:00:38.9]} 23. Qd3 {[%clk 0:01:08.5]} 23... g6 {[%clk
0:00:33.6]} 24. Qe3 {[%clk 0:01:08]} 24... Kg7 {[%clk 0:00:25.7]} 25. Qxc5
{[%clk 0:01:07.7]} 25... Qxa2 {[%clk 0:00:23.6]} 26. Qd6 {[%clk 0:00:52.6]}
26... Qxb2 {[%clk 0:00:16.8]} 27. Qf6+ {[%clk 0:00:51.6]} 27... Kh7 {[%clk
0:00:12.4]} 28. Nf3 {[%clk 0:00:44]} 28... Nd5 {[%clk 0:00:11.3]} 29. Qh4 {[%clk
0:00:37.7]} 29... Qxc3 {[%clk 0:00:10.8]} 30. Ng5+ {[%clk 0:00:36.3]} 30... Kg7
{[%clk 0:00:11.1]} 31. Ne4 {[%clk 0:00:30]} 31... Qd4+ {[%clk 0:00:10.5]} 32.
Kh1 {[%clk 0:00:29.3]} 32... Qxe5 {[%clk 0:00:10.8]} 33. Ref2 {[%clk 0:00:24.4]}
33... f5 {[%clk 0:00:07.9]} 34. Nc5 {[%clk 0:00:21.9]} 34... Ne3 {[%clk
0:00:07.2]} 35. Nxb7 {[%clk 0:00:20]} 35... Nxf1 {[%clk 0:00:07]} 36. Rxf1
{[%clk 0:00:19.3]} 36... Qc7 {[%clk 0:00:07.2]} 37. Qd4+ {[%clk 0:00:16.8]}
37... Kh7 {[%clk 0:00:06.1]} 38. Nc5 {[%clk 0:00:16.3]} 38... Rc8 {[%clk
0:00:04.8]} 39. Ne6 {[%clk 0:00:15.3]} 39... Qd6 {[%clk 0:00:05.3]} 40. Qg7#
{[%clk 0:00:14.2]} 1-0

[Event "Early-Titled-Tuesday-Blitz-February-06-2024"]
[Site "Chess.com"]
[Date "2024.02.06"]
[Round "6"]
[White "maximnovik"]
[Black "Road2GM3000"]
[Result "0-1"]
[WhiteElo "2596"]
[BlackElo "2482"]
[TimeControl "180+1"]
[EndTime "9:07:48 PST"]
[Termination "Road2GM3000 won on time"]

1. e4 {[%clk 0:03:00.9]} 1... c5 {[%clk 0:02:54.2]} 2. Nf3 {[%clk 0:03:00.7]}
2... d6 {[%clk 0:02:54.2]} 3. d4 {[%clk 0:03:01.1]} 3... cxd4 {[%clk 0:02:54.1]}
4. Nxd4 {[%clk 0:03:01.6]} 4... Nf6 {[%clk 0:02:54.6]} 5. Nc3 {[%clk 0:03:02]}
5... a6 {[%clk 0:02:55.4]} 6. a4 {[%clk 0:03:00]} 6... e5 {[%clk 0:02:55.5]} 7.
Nf3 {[%clk 0:02:59.6]} 7... Be7 {[%clk 0:02:54.6]} 8. Bg5 {[%clk 0:02:58.5]}
8... Be6 {[%clk 0:02:54.3]} 9. Bxf6 {[%clk 0:02:57.4]} 9... Bxf6 {[%clk
0:02:53.8]} 10. Nd5 {[%clk 0:02:57.6]} 10... Nd7 {[%clk 0:02:52.9]} 11. Bc4
{[%clk 0:02:57.3]} 11... O-O {[%clk 0:02:50.2]} 12. O-O {[%clk 0:02:56.4]} 12...
Rc8 {[%clk 0:02:47.9]} 13. Qe2 {[%clk 0:02:56.5]} 13... Nb6 {[%clk 0:02:41.2]}
14. Nxf6+ {[%clk 0:02:15.7]} 14... Qxf6 {[%clk 0:02:40.5]} 15. Bxe6 {[%clk
0:02:15.5]} 15... fxe6 {[%clk 0:02:39.4]} 16. a5 {[%clk 0:02:12.3]} 16... Nd7
{[%clk 0:02:33.3]} 17. Rfd1 {[%clk 0:02:12.5]} 17... Rc6 {[%clk 0:02:26.7]} 18.
Ra3 {[%clk 0:02:10.7]} 18... Rfc8 {[%clk 0:02:15.6]} 19. Rd2 {[%clk 0:02:10]}
19... d5 {[%clk 0:01:34.7]} 20. c3 {[%clk 0:01:48.7]} 20... Rd6 {[%clk
0:01:31.1]} 21. Ra1 {[%clk 0:01:44]} 21... Rc5 {[%clk 0:00:47.6]} 22. h3 {[%clk
0:01:12.1]} 22... Qf4 {[%clk 0:00:46.2]} 23. g3 {[%clk 0:01:05.9]} 23... Qf6
{[%clk 0:00:42.9]} 24. Kg2 {[%clk 0:01:04.2]} 24... h6 {[%clk 0:00:42]} 25. Nh2
{[%clk 0:01:01.6]} 25... Nb8 {[%clk 0:00:37.7]} 26. Ng4 {[%clk 0:01:01]} 26...
Qg5 {[%clk 0:00:33.3]} 27. exd5 {[%clk 0:00:57.5]} 27... Rcxd5 {[%clk
0:00:32.8]} 28. Rxd5 {[%clk 0:00:55.5]} 28... Rxd5 {[%clk 0:00:33.7]} 29. Ne3
{[%clk 0:00:45]} 29... Rc5 {[%clk 0:00:27.2]} 30. Rd1 {[%clk 0:00:40.3]} 30...
Rxa5 {[%clk 0:00:26.7]} 31. h4 {[%clk 0:00:36.9]} 31... Qe7 {[%clk 0:00:26.5]}
32. Qd3 {[%clk 0:00:30.7]} 32... Nc6 {[%clk 0:00:24.5]} 33. Qg6 {[%clk
0:00:21.2]} 33... Qf7 {[%clk 0:00:18.1]} 34. Qxf7+ {[%clk 0:00:19.6]} 34... Kxf7
{[%clk 0:00:18.2]} 35. Rd7+ {[%clk 0:00:20.1]} 35... Kf6 {[%clk 0:00:15.6]} 36.
Rxb7 {[%clk 0:00:17.7]} 36... Rb5 {[%clk 0:00:16.3]} 37. Rc7 {[%clk 0:00:12.4]}
37... Na5 {[%clk 0:00:14.2]} 38. b4 {[%clk 0:00:09.5]} 38... Nb7 {[%clk
0:00:13]} 39. Ng4+ {[%clk 0:00:08]} 39... Kf5 {[%clk 0:00:11.5]} 40. Rxg7 {[%clk
0:00:06.2]} 40... Nd6 {[%clk 0:00:10.5]} 41. Nxh6+ {[%clk 0:00:05.8]} 41... Ke4
{[%clk 0:00:10.7]} 42. h5 {[%clk 0:00:02]} 42... Kd3 {[%clk 0:00:11.4]} 0-1

[Event "Early-Titled-Tuesday-Blitz-February-06-2024"]
[Site "Chess.com"]
[Date "2024.02.06"]
[Round "6"]
[White "alvarorodriguezavila"]
[Black "mortngabriel"]
[Result "0-1"]
[WhiteElo "2371"]
[BlackElo "2511"]
[TimeControl "180+1"]
[EndTime "9:07:48 PST"]
[Termination "mortngabriel won on time"]

1. e4 {[%clk 0:03:00.9]} 1... c5 {[%clk 0:02:59.9]} 2. d4 {[%clk 0:03:01.1]}
2... cxd4 {[%clk 0:02:59.9]} 3. c3 {[%clk 0:03:01.9]} 3... dxc3 {[%clk
0:03:00.3]} 4. Bc4 {[%clk 0:03:01.7]} 4... Nc6 {[%clk 0:03:01.2]} 5. Nxc3 {[%clk
0:02:57.1]} 5... d6 {[%clk 0:03:01.6]} 6. Nf3 {[%clk 0:02:54.6]} 6... a6 {[%clk
0:03:01]} 7. O-O {[%clk 0:02:52]} 7... Nf6 {[%clk 0:03:00.7]} 8. h3 {[%clk
0:02:48.8]} 8... e6 {[%clk 0:03:00.4]} 9. Qe2 {[%clk 0:02:48.9]} 9... Qc7 {[%clk
0:02:59.1]} 10. Rd1 {[%clk 0:02:48.1]} 10... Be7 {[%clk 0:02:59]} 11. Bf4 {[%clk
0:02:44.5]} 11... Ne5 {[%clk 0:02:58.4]} 12. Bb3 {[%clk 0:02:43.2]} 12... O-O
{[%clk 0:02:57.7]} 13. Rac1 {[%clk 0:02:43.8]} 13... Qb8 {[%clk 0:02:57.7]} 14.
Nd4 {[%clk 0:02:35]} 14... Bd7 {[%clk 0:02:35.8]} 15. Rd2 {[%clk 0:02:16.8]}
15... b5 {[%clk 0:02:31.7]} 16. Bg3 {[%clk 0:02:12.5]} 16... Rc8 {[%clk
0:02:28.9]} 17. Rcd1 {[%clk 0:02:10.2]} 17... Qb7 {[%clk 0:02:06.4]} 18. Kh2
{[%clk 0:01:41.9]} 18... b4 {[%clk 0:02:01.4]} 19. Nd5 {[%clk 0:01:19.6]} 19...
exd5 {[%clk 0:01:56]} 20. exd5 {[%clk 0:01:20.2]} 20... Ng6 {[%clk 0:01:29.5]}
21. Qf3 {[%clk 0:01:03.2]} 21... Re8 {[%clk 0:01:27.7]} 22. Rc1 {[%clk
0:00:52.3]} 22... Rac8 {[%clk 0:01:25.7]} 23. Rdc2 {[%clk 0:00:36.2]} 23... Rxc2
{[%clk 0:01:23]} 24. Rxc2 {[%clk 0:00:37.1]} 24... Bf8 {[%clk 0:01:21.7]} 25.
Nc6 {[%clk 0:00:35.8]} 25... Ne4 {[%clk 0:01:06.6]} 26. h4 {[%clk 0:00:27.3]}
26... Nxg3 {[%clk 0:01:06.2]} 27. fxg3 {[%clk 0:00:27.8]} 27... Ne5 {[%clk
0:01:04.3]} 28. Nxe5 {[%clk 0:00:14.9]} 28... Rxe5 {[%clk 0:01:03.8]} 29. Rf2
{[%clk 0:00:15.6]} 29... Be8 {[%clk 0:01:02]} 30. Rc2 {[%clk 0:00:15.8]} 30...
g6 {[%clk 0:00:59.6]} 31. Qf6 {[%clk 0:00:15.5]} 31... Qe7 {[%clk 0:00:57]} 32.
Qf4 {[%clk 0:00:12]} 32... Bg7 {[%clk 0:00:54.1]} 33. Rc8 {[%clk 0:00:12.4]}
33... Qd7 {[%clk 0:00:47.8]} 34. Ra8 {[%clk 0:00:10.7]} 34... Qb5 {[%clk
0:00:38.4]} 35. Qg4 {[%clk 0:00:06]} 35... h5 {[%clk 0:00:36.3]} 36. Qc8 {[%clk
0:00:06.4]} 36... Kh7 {[%clk 0:00:36.6]} 37. Qc7 {[%clk 0:00:03.9]} 37... Re2
{[%clk 0:00:33.3]} 38. Bc4 {[%clk 0:00:03.2]} 38... Rc2 {[%clk 0:00:26.6]} 39.
Bxb5 {[%clk 0:00:02.7]} 39... Rxc7 {[%clk 0:00:23.1]} 40. Bxe8 {[%clk
0:00:03.6]} 40... Bxb2 {[%clk 0:00:20.2]} 41. Rxa6 {[%clk 0:00:03.6]} 41... Be5
{[%clk 0:00:20.3]} 42. Ba4 {[%clk 0:00:04]} 42... Rc3 {[%clk 0:00:20.1]} 43. Bb3
{[%clk 0:00:04.7]} 43... Rxg3 {[%clk 0:00:19.5]} 44. Kh1 {[%clk 0:00:04.5]}
44... Rc3 {[%clk 0:00:18.6]} 45. Ra7 {[%clk 0:00:04.6]} 45... Rc1+ {[%clk
0:00:18]} 0-1